Cogmind - Beta 13 @@@ ROGUE MODE // 2024.04.02 @ 03:49:47 Player: mosstonic Result: Destroyed by P-60 Hacker with Shock Rifle Performance ------------- Evolutions (3) 1500 Regions Visited (7) 1400 Robots Destroyed (79) 395 Value Destroyed (2185) 2185 Prototype IDs (3) 60 Alien Tech Used (0) 0 Bonus (-354) -354 TOTAL SCORE: 5186 Bonus ------- High Alert Combat Kills 92 Friendly Fire -446 Cogmind --------- Core Integrity 0/700 Matter 5/300 Energy 100/100 System Corruption 12% Temperature Cool (0) Movement Core (750) Ox14 Location -7/Factory Parts ------- > --- POWER (1) -------- (None) > --- PROPULSION (2) --- (None) > --- UTILITY (4) ------ High-capacity Storage Unit Hacking Suite Thief Drone Bay (1/3) > --- WEAPON (6) ------- (None) > --- INVENTORY (20) --- Improved Deuterium Engine Micro Nuclear Core Fission Core Light Treads Armored Treads Gravmag System Compact Matter Pod (0) Improved Terrain Scanner Core Analyzer Reaction Control System Shock Rifle Peak State ------------ > --- POWER ------------ Light Nuclear Core > --- PROPULSION ------- Gravmag System Gravmag System > --- UTILITY ---------- Improved Heat Sink High-capacity Storage Unit Core Analyzer Hacking Suite > --- WEAPON ----------- Shock Rifle Heavy Laser Heavy Laser Heavy Laser Gauss Cannon Rocket Launcher > --- INVENTORY -------- Light Ion Engine Fission Core Light Treads Armored Treads Gravmag System Compact Matter Pod Improved Terrain Scanner Core Analyzer Reaction Control System Thief Drone Bay Rocket Launcher [Rating: 46] Favorites ----------- Power Light Ion Engine Engine Light Ion Engine Power Core Light Nuclear Core Propulsion Light Treads Treads Light Treads Hover Unit Gravmag System Utility High-capacity Storage Unit Device Improved Terrain Scanner Storage High-capacity Storage Unit Processor Core Analyzer Hackware Hacking Suite Protection Light Armor Plating Weapon Heavy Laser Energy Gun Heavy Laser Energy Cannon Heavy Particle Cannon Ballistic Gun Light Assault Rifle Ballistic Cannon Gauss Cannon Launcher Rocket Launcher Special Melee Weapon Improved Datajack Build | -11 -10 -9 -9 -9 -8 -8 -7 ------- Run | Yrd Mat Mat Min Exi Min Mat Fac Slots Evolved 6 | . . 2 . . . 2 2 Power . | . . . . . . . . Propulsion . | . . . . . . . . Utility 2 | . . 1 . . . 1 . Weapon 4 | . . 1 . . . 1 2 Parts Attached 52 | 7 3 13 4 . . 12 13 Power 6 | 1 1 . 1 . . 1 2 Engine 4 | 1 1 . 1 . . . 1 Core 2 | . . . . . . 1 1 Reactor . | . . . . . . . . Propulsion 12 | 2 . 3 2 . . 2 3 Treads 10 | 2 . 3 2 . . 2 1 Leg . | . . . . . . . . Wheel . | . . . . . . . . Hover 2 | . . . . . . . 2 Flight . | . . . . . . . . Utility 12 | 2 2 2 . . . 3 3 Device 6 | 1 1 1 . . . 1 2 Storage 2 | 1 1 . . . . . . Processor 1 | . . . . . . 1 . Hackware 1 | . . . . . . . 1 Protection 2 | . . 1 . . . 1 . Artifact . | . . . . . . . . Weapon 22 | 2 . 8 1 . . 6 5 Energy Gun 7 | 1 . 2 . . . 3 1 Energy Cannon 3 | . . 3 . . . . . Ballistic Gun 5 | 1 . 1 1 . . 1 1 Ballistic Cannon 2 | . . . . . . 1 1 Launcher 4 | . . 2 . . . . 2 Special Weapon . | . . . . . . . . Impact Weapon . | . . . . . . . . Slashing Weapon . | . . . . . . . . Piercing Weapon . | . . . . . . . . Special Melee Weapon 1 | . . . . . . 1 . Unidentified Prototypes 1 | . . . . . . . 1 Parts Lost 24 | . 2 7 . . . 1 14 Power 4 | . 1 1 . . . . 2 Propulsion 4 | . . 2 . . . . 2 Utility 5 | . . 1 . . . 1 3 Weapon 11 | . 1 3 . . . . 7 Highest Loss Streak 13 | . 1 3 . . . 1 13 To Critical Strikes . | . . . . . . . . Average Slot Usage (%) 91 | . 94 90 87 88 88 93 90 Engine 6 | . 10 10 11 11 11 1 . Core 2 | . . . . . . 7 5 Treads 19 | . 28 21 21 22 22 18 9 Hover 1 | . . . . . . . 4 Device 10 | . 14 10 11 11 11 15 6 Storage 10 | . 14 11 11 11 11 9 7 Processor 1 | . . . . . . . 6 Protection 5 | . . 6 11 11 11 8 4 Energy Gun 12 | . 11 12 . . . 1 24 Energy Cannon 1 | . . 5 . . . . . Ballistic Gun 7 | . 14 3 11 11 11 8 2 Ballistic Cannon 1 | . . . . . . 7 2 Launcher 7 | . . 8 11 11 11 9 8 Naked Turns . | . . . . . . . . Heaviest Build 75 | 13 48 64 52 52 52 66 75 Greatest Support 40 | 40 40 40 40 40 40 40 40 Greatest Overweight (x) 16 | . 1 2 1 1 1 1 16 Average Overweight (x) 1 | . . 1 1 1 1 1 1 Largest Inventory Capacity 20 | 8 20 20 20 20 20 20 20 Average Capacity 19 | 7 17 20 20 20 20 20 20 Most Carried 14 | 4 5 8 6 7 8 12 14 Average Carried 6 | . 2 5 5 6 7 7 10 Final Capacity 20 | 8 20 20 20 20 20 20 20 Final Carried 11 | . 4 6 6 7 8 10 11 Class Distribution -------------------- 23% | Scavenger-Mutant 21% | Mutant 13% | Scavenger-Bomber 13% | Scavenger-Executioner 8% | Executioner 8% | Skirmisher 8% | Scavenger-Tank Dominant Class ---------------- Mutant | -10/Materials Skirmisher | -9/Materials Scavenger-Mutant | -9/Mines Scavenger-Mutant | -9/Exiles Scavenger-Mutant | -8/Mines Scavenger-Bomber | -8/Materials Scavenger-Executioner | -7/Factory Resources | -11 -10 -9 -9 -9 -8 -8 -7 ----------- Run | Yrd Mat Mat Min Exi Min Mat Fac Matter Collected 1212 | 278 173 396 91 . 10 88 176 Remotely . | . . . . . . . . Salvage Created 2012 | 53 410 734 116 . . 327 372 Parts 143 | 10 19 55 5 . . 36 18 Haulers Intercepted 1 | . . 1 . . . . . Recyclers Shooed 4 | 1 . 2 1 . . . . Parts Field Recycled . | . . . . . . . . Retrieved Matter . | . . . . . . . . Parts Self-Destructed . | . . . . . . . . Prevented . | . . . . . . . . Kills | -11 -10 -9 -9 -9 -8 -8 -7 ------- Run | Yrd Mat Mat Min Exi Min Mat Fac Combat Hostiles Destroyed 51 | . 11 22 2 . . 7 9 Guns 21 | . 11 6 . . . . 4 Cannons 4 | . . . . . . 3 1 AOE 25 | . . 16 2 . . 4 3 Classes Destroyed 14 | 2 3 6 1 . . 1 1 Worker 2 | 1 . 1 . . . . . Builder 6 | . . 2 . . . 4 . Tunneler 5 | 2 . 1 . . . 1 1 Hauler 1 | . . 1 . . . . . Recycler 4 | . . 2 1 . . . 1 Mechanic 2 | . . 2 . . . . . Watcher 7 | . 2 4 . . . 1 . Swarmer 13 | . 3 10 . . . . . Grunt 22 | . 8 8 1 . . 2 3 Brawler 1 | . . . 1 . . . . Protector 1 | . . 1 . . . . . Sentry 5 | . . 3 . . . 2 . Hunter 6 | . . . . . . 3 3 Programmer 3 | . . . . . . . 3 Thug 1 | . . . . . . . 1 Best Kill Streak 12 | 2 3 12 3 . . 6 4 Combat Bots Only 5 | . 3 5 2 . . 2 3 Max Kills in Single Turn 4 | 2 1 4 2 . . 4 2 Gunslinging . | . . . . . . . . Exploded 3 | . . 3 2 . . 1 2 Melee . | . . . . . . . . Uniques/NPCs Destroyed . | . . . . . . . . Combat | -11 -10 -9 -9 -9 -8 -8 -7 -------- Run | Yrd Mat Mat Min Exi Min Mat Fac Hostile Shots Fired 334 | . 67 78 2 . . 31 156 Missed 121 | . 26 21 . . . 11 63 Damage Taken 3552 | . 441 779 47 . . 329 1956 Core 904 | . 67 111 . . . 23 703 Absorbed by Shields . | . . . . . . . . Core Remaining (%) 85 | 100 73 . . . 72 95 . Volleys Fired 139 | 6 47 39 5 . . 18 24 Largest 6 | 2 2 3 2 . . 3 6 Hottest 338 | 60 60 225 53 . . 100 338 Shots Fired 326 | 12 80 101 7 . . 47 79 Gun 234 | 12 80 56 5 . . 18 63 Cannon 37 | . . 15 . . . 18 4 Launcher 55 | . . 30 2 . . 11 12 Special . | . . . . . . . . Kinetic 107 | 6 47 5 5 . . 36 8 Thermal 66 | . . 15 . . . . 51 Explosive 55 | . . 30 2 . . 11 12 Electromagnetic 98 | 6 33 51 . . . . 8 Robot Hit Streak 12 | 4 8 4 3 . . 7 12 Robot Miss Streak 8 | 3 4 8 1 . . 3 2 Penetration Max . | . . . . . . . . Secondary Targets 1 | . 1 . . . . . . Max Gunslinging Chain 1 | . 1 . . . . . . Shots Hit Robots 156 | 7 46 35 4 . . 23 41 Core Hits 143 | 4 21 51 7 . . 18 42 Critical Kills . | . . . . . . . . Critical Parts Destroyed 1 | . 1 . . . . . . Critical Strikes 5 | . 1 . . . . 2 2 Burn 2 | . . . . . . . 2 Destroy 1 | . 1 . . . . . . Blast 2 | . . . . . . 2 . Melee Attacks . | . . . . . . . . Impact . | . . . . . . . . Slashing . | . . . . . . . . Piercing . | . . . . . . . . Sneak Attacks . | . . . . . . . . Combat Hostiles . | . . . . . . . . Follow-up Attacks . | . . . . . . . . Damage Inflicted 6750 | 101 657 2694 140 . . 854 2304 Guns 1806 | 101 628 400 32 . . 39 606 Cannons 540 | . . 200 . . . 243 97 Explosions 4404 | . 29 2094 108 . . 572 1601 Melee . | . . . . . . . . Ramming . | . . . . . . . . Kinetic 851 | 51 360 14 32 . . 282 112 Thermal 1007 | . 29 200 . . . . 778 Explosive 4152 | . . 2094 108 . . 572 1378 Electromagnetic 740 | 50 268 386 . . . . 36 Impact . | . . . . . . . . Slashing . | . . . . . . . . Piercing . | . . . . . . . . Highest Corruption 12 | . . . . . . . 12 Average Corruption 2 | . . . . . . . 2 Corruption Purged . | . . . . . . . . Corruption Blocked . | . . . . . . . . Effects 2 | . . . . . . . 2 Matter Fused 1 | . . . . . . . 1 Misdirections 1 | . . . . . . . 1 Overload Shots . | . . . . . . . . Overflow Damage 134 | . . 119 . . . . 15 Projectiles 5 | . . 5 . . . . . Explosions 129 | . . 114 . . . . 15 Melee . | . . . . . . . . Knockbacks 2 | . . . . . . 2 . Impact . | . . . . . . . . Kinetic 2 | . . . . . . 2 . Secondary . | . . . . . . . . Self-Inflicted Damage 463 | . . 111 25 . . 26 301 Shots 12 | . . 4 1 . . 2 5 Rammed . | . . . . . . . . Targets Rammed . | . . . . . . . . Kicked . | . . . . . . . . Crushed . | . . . . . . . . Highest Temperature 619 | . 25 312 18 . . 108 619 Average Temperature 114 | . 12 105 10 . . 35 206 Received Heat Transfer 591 | . 204 270 12 . . 54 51 Effects 19 | . . . . . . . 19 Shutdowns 3 | . . . . . . . 3 Energy Bleed 4 | . . . . . . . 4 Interference 7 | . . . . . . . 7 Short Circuit 1 | . . . . . . . 1 Damage (minor) 1 | . . . . . . . 1 Damage (major) 2 | . . . . . . . 2 Damage (core) 1 | . . . . . . . 1 Siege Activations . | . . . . . . . . Robots Corrupted . | . . . . . . . . Combat Hostiles . | . . . . . . . . Parts Fried 2 | . . 2 . . . . . Impact Corruptions . | . . . . . . . . Robots Melted 1 | . . . . . . . 1 Combat Hostiles 1 | . . . . . . . 1 Parts Melted 2 | . . . . . . . 2 Heat Transferred 1606 | . 50 296 . . . . 1260 Parts Sabotaged . | . . . . . . . . Parts Stolen . | . . . . . . . . Parts Stripped . | . . . . . . . . Power Chain Reactions 1 | . 1 . . . . . . Alert | -11 -10 -9 -9 -9 -8 -8 -7 ------- Run | Yrd Mat Mat Min Exi Min Mat Fac Peak Influence 680 | 15 174 680 330 . . 400 174 Initial 262 | . 9 . 262 . . . 91 Average 168 | 4 68 363 321 . . 204 109 Maximum Alert Level 2 | . . 2 1 . . 2 . Low Security (%) 71 | 100 100 29 . . 100 37 100 Level 1 16 | . . 16 100 . . 50 . Level 2 12 | . . 53 . . . 11 . Level 3 . | . . . . . . . . Level 4 . | . . . . . . . . Level 5 . | . . . . . . . . High Security . | . . . . . . . . Max Security . | . . . . . . . . Squads Dispatched 17 | . 4 2 . . . 1 10 Investigation 7 | . 3 1 . . . . 3 Extermination 3 | . . . . . . . 3 Reinforcement 3 | . 1 . . . . 1 1 Assault 1 | . . 1 . . . . . Garrison 3 | . . . . . . . 3 Intercept . | . . . . . . . . Searches Triggered . | . . . . . . . . Construction Impeded 2 | . . . . . . 1 1 Haulers Reinforced . | . . . . . . . . Active Scanning Responses . | . . . . . . . . Cargo Convoy Interrupts 1 | . . . . . . . 1 Stealth | -11 -10 -9 -9 -9 -8 -8 -7 --------- Run | Yrd Mat Mat Min Exi Min Mat Fac Distress Signals 3 | . 2 1 . . . . . Communications Jammed . | . . . . . . . . Distress Signals . | . . . . . . . . Times Spotted 77 | . 16 30 2 . . 8 21 Peak Tracking Total 11 | . 3 6 2 . . 2 11 Tactical Retreats 1 | . . 1 . . . . . Traps | -11 -10 -9 -9 -9 -8 -8 -7 ------- Run | Yrd Mat Mat Min Exi Min Mat Fac Traps Triggered 3 | . 3 . . . . . . Indirectly . | . . . . . . . . Trap Hack Attempts . | . . . . . . . . Triggered . | . . . . . . . . Disarmed . | . . . . . . . . Reprogrammed . | . . . . . . . . Reused . | . . . . . . . . Traps Extracted . | . . . . . . . . Installed . | . . . . . . . . Triggered . | . . . . . . . . Machines | -11 -10 -9 -9 -9 -8 -8 -7 ---------- Run | Yrd Mat Mat Min Exi Min Mat Fac Machines Disabled 18 | . . 9 . . . 3 6 Max in Single Turn 3 | . . 3 . . . 2 2 Machines Repaired . | . . . . . . . . Machines Dismantled . | . . . . . . . . Machines Sabotaged . | . . . . . . . . Overloaded Fab Kills . | . . . . . . . . Hacking | -11 -10 -9 -9 -9 -8 -8 -7 --------- Run | Yrd Mat Mat Min Exi Min Mat Fac Machines Accessed 8 | . 2 1 1 . . . 4 Terminals 3 | . 2 1 . . . . . Fabricators 1 | . . . . . . . 1 Repair Stations 1 | . . . . . . . 1 Recycling Units 2 | . . . . . . . 2 Scanalyzers . | . . . . . . . . Garrison Access . | . . . . . . . . Total Hacks 22 | . 4 4 1 . . . 13 Successful 14 | . 2 3 1 . . . 8 Failed 8 | . 2 1 . . . . 5 Catastrophic 3 | . 2 1 . . . . . Database Lockouts . | . . . . . . . . Manual 4 | . 3 1 . . . . . Terminals 8 | . 4 4 . . . . . Fabricators 3 | . . . . . . . 3 Repair Stations 1 | . . . . . . . 1 Recycling Units 9 | . . . . . . . 9 Scanalyzers . | . . . . . . . . Garrison Access . | . . . . . . . . Terminal Hacks 6 | . 2 3 1 . . . . Record 2 | . . 2 . . . . . Part Schematic 1 | . 1 . . . . . . Prototype ID Bank 1 | . 1 . . . . . . Open Door 1 | . . . 1 . . . . Alert Level 1 | . . 1 . . . . . Fabricator Hacks 2 | . . . . . . . 2 Load Schematic 1 | . . . . . . . 1 Build 1 | . . . . . . . 1 Repair Station Hacks . | . . . . . . . . Recycling Unit Hacks 6 | . . . . . . . 6 Recycle Component 2 | . . . . . . . 2 Process 1 | . . . . . . . 1 Retrieve Matter 2 | . . . . . . . 2 Retrieve Components 1 | . . . . . . . 1 Scanalyzer . | . . . . . . . . Garrison Access Hacks . | . . . . . . . . Unauthorized Hacks . | . . . . . . . . Terminals . | . . . . . . . . Fabricators . | . . . . . . . . Repair Stations . | . . . . . . . . Recycling Units . | . . . . . . . . Scanalyzers . | . . . . . . . . Garrison Access . | . . . . . . . . Data Cores Recovered . | . . . . . . . . Used . | . . . . . . . . Hacking Detections 5 | . . 1 . . . . 4 Full Trace Events 4 | . . 1 . . . . 3 Feedback Events . | . . . . . . . . Feedback Blocked . | . . . . . . . . Robot Schematics Acquired . | . . . . . . . . Robots Built . | . . . . . . . . Authchips . | . . . . . . . . Time . | . . . . . . . . Total Robot Build Rating . | . . . . . . . . Part Schematics Acquired 1 | . 1 . . . . . . Parts Built . | . . . . . . . . Authchips . | . . . . . . . . Time 51 | . . . . . . . 51 Total Part Build Rating . | . . . . . . . . Parts Repaired . | . . . . . . . . Time . | . . . . . . . . Parts Recycled 2 | . . . . . . . 2 Recycled Matter 46 | . . . . . . . 46 Retrieved Matter 46 | . . . . . . . 46 Retrieved Components . | . . . . . . . . Parts Scanalyzed . | . . . . . . . . Part Schematics Acquired . | . . . . . . . . Parts Damaged . | . . . . . . . . Bothacking | -11 -10 -9 -9 -9 -8 -8 -7 ------------ Run | Yrd Mat Mat Min Exi Min Mat Fac Used RIF Installer . | . . . . . . . . Robots Hacked . | . . . . . . . . Non-combat . | . . . . . . . . Combat . | . . . . . . . . Robot Hacks Applied . | . . . . . . . . Relay Couplers Released . | . . . . . . . . Fabnet Peak Effective % . | . . . . . . . . Robots Rewired . | . . . . . . . . Allies Hacked . | . . . . . . . . Hacks Repelled . | . . . . . . . . Allies | -11 -10 -9 -9 -9 -8 -8 -7 -------- Run | Yrd Mat Mat Min Exi Min Mat Fac Total Allies . | . . . . . . . . Largest Group . | . . . . . . . . Highest-Rated Group . | . . . . . . . . Highest-Rated Ally . | . . . . . . . . Total Orders . | . . . . . . . . Ally Attacks 17 | . . . . . . . 17 Total Damage 96 | . . . . . . . 96 Kills . | . . . . . . . . Allies Corrupted . | . . . . . . . . Allies Melted . | . . . . . . . . Intel | -11 -10 -9 -9 -9 -8 -8 -7 ------- Run | Yrd Mat Mat Min Exi Min Mat Fac Robot Analysis Total . | . . . . . . . . Derelict Logs Recovered 1 | . . . 1 . . . . Drone Launches 4 | . . . . . . . 4 Drone Recoveries 2 | . . . . . . . 2 Exploration | -11 -10 -9 -9 -9 -8 -8 -7 ------------- Run | Yrd Mat Mat Min Exi Min Mat Fac Turns Passed 4647 | 140 871 913 266 321 309 550 1277 Spaces Moved 1762 | 77 333 316 104 134 129 193 476 Core 16 | 13 . . . . . . 3 Treads 1588 | 64 333 316 104 134 129 193 315 Legs . | . . . . . . . . Wheels . | . . . . . . . . Hover 158 | . . . . . . . 158 Flight . | . . . . . . . . Fastest Speed 50 | 50 160 240 240 240 240 240 236 Average Speed 234 | 141 220 242 240 240 240 241 246 Slowest Speed 850 | 160 240 320 240 240 240 245 850 Overloaded Moves . | . . . . . . . . Propulsion Burnouts . | . . . . . . . . Robots Hopped . | . . . . . . . . Cave-ins Triggered . | . . . . . . . . Exploration Rate (%) 25 | 5 45 35 29 26 40 15 7 Regions Visited 7 Branch Regions 3 Pre-discovered Areas . | . . . . . . . . Known Exits Taken . | . . . . . . . . Unknown Exits Taken 7 | 1 1 1 1 1 1 1 . Scrap Searched 1 | . . . . . 1 . . Spaces Dug . | . . . . . . . . Terrain Destroyed 526 | . 1 268 25 . . 99 133 Melee . | . . . . . . . . Projectile 12 | . . 7 . . . 3 2 AOE 514 | . 1 261 25 . . 96 131 Terrain Rammed . | . . . . . . . . Walls Destroyed . | . . . . . . . . Machines Disabled . | . . . . . . . . Actions | -11 -10 -9 -9 -9 -8 -8 -7 --------- Run | Yrd Mat Mat Min Exi Min Mat Fac Total 2028 | 96 390 387 115 134 129 246 531 Wait 2 | . . 1 . . . . 1 Move 1755 | 76 332 315 103 133 128 192 476 Hop . | . . . . . . . . Pick Up 55 | 7 6 14 2 1 1 14 10 Fast Attach . | . . . . . . . . Attach 48 | 7 2 12 3 . . 11 13 Detach 8 | . 1 . 1 . . 2 4 Swap 4 | . 1 1 1 . . 1 . Drop 17 | . 1 5 . . . 8 3 Fire 139 | 6 47 39 5 . . 18 24 Melee . | . . . . . . . . Ram . | . . . . . . . . Kick . | . . . . . . . . Crush . | . . . . . . . . Escape Stasis . | . . . . . . . . Rewire . | . . . . . . . . Trap . | . . . . . . . . Miscellaneous . | . . . . . . . . Route ------- -11/Scrapyard -10/Materials (discovered 2 exits: *Mat / [*Min]) -9/Materials -9/Mines (discovered 3 exits: *Mat x2 / [*Exi]) -9/Exiles -8/Mines -8/Materials -7/Factory History --------- Turn | Location | Event 3 | -11/Scrapyard | Discovered new exit (range 15) 141 | -11/Scrapyard | Entered Materials 318 | -10/Materials | Build established: Mutant 450 | -10/Materials | Discovered new exit (range 6) 995 | -10/Materials | Discovered new exit (range 6) 1012 | -10/Materials | Entered another Materials area 1012 | -9/Materials | Evolved 2 slots: Utility x1, Weapon x1 1269 | -9/Materials | Discovered new exit (range 14) 1318 | -9/Materials | Build established: Skirmisher 1812 | -9/Materials | First assault squad dispatched 1891 | -9/Materials | Lost 3 parts (1p2w) 1925 | -9/Materials | Entered Mines 1958 | -9/Mines | Met a Derelict bent on vengeance 2012 | -9/Mines | Discovered new exit (range 12) 2094 | -9/Mines | Learned Materials stockpile data 2096 | -9/Mines | Discovered new exit (range 16) 2121 | -9/Mines | Found the Drone Emporium 2139 | -9/Mines | Found Prototype Device 2153 | -9/Mines | Build established: Scavenger-Mutant 2179 | -9/Mines | Deemed a non-threat by the Exiles lab entrance 2181 | -9/Mines | Discovered new exit (range 5) 2191 | -9/Mines | Entered Exiles 2238 | -9/Exiles | Discovered new exit (range 14) 2291 | -9/Exiles | Met 8R-AWN 2341 | -9/Exiles | Met EX-HEX 2512 | -9/Exiles | Entered Mines 2648 | -8/Mines | Discovered new exit (range 9) 2821 | -8/Mines | Entered Materials 2821 | -8/Materials | Evolved 2 slots: Utility x1, Weapon x1 3268 | -8/Materials | Build established: Scavenger-Bomber 3270 | -8/Materials | Discovered new exit (range 16) 3371 | -8/Materials | Entered Factory 3371 | -7/Factory | Evolved 2 slots: Weapon x2 3892 | -7/Factory | Garrison activated, responded to threat 3904 | -7/Factory | Build established: Scavenger-Executioner 4495 | -7/Factory | Build established: Executioner 4591 | -7/Factory | Cargo convoy interrupted 4596 | -7/Factory | Core integrity fell below 50% 4621 | -7/Factory | System corruption reached 10% 4622 | -7/Factory | Core integrity fell below 20% 4622 | -7/Factory | Identified Thief Drone Bay 4648 | -7/Factory | Destroyed by P-60 Hacker with Shock Rifle Last Messages --------------- K-01 Serf collects debris. A-02 Transporter destroyed. K-01 Serf collects debris. Thief Drone destroyed. P-60 Hacker Shock Rifle ripped off. The unstable cave ceiling collapses. Acquired Imp. Deuterium Engine. K-01 Serf collects debris. Thief Drone released from Thief Drone Bay. K-01 Serf collects debris. The unstable cave ceiling collapses. P-60 Hacker resets P-60 Hacker, system corruption cleaned. Thief Drone delivers Shock Rifle. Thief Drone retrieved by Thief Drone Bay. U-05 Engineer builds a Wall. Lgt. Nuclear Core destroyed. Thief Drone destroyed. [Achievement: First Step to Greatness] [Achievement: 5k Club] Map ----- +----------------------------------------------------+ | ##??#????????????????????????????????????????????? | | #???????#?#??????????????????????????????????????? | | #????#?#?????????????????????????????????????????? | | #????????????????????????????????????????????????? | | #????????????????????????????????????????????????? | | #???????????#????????????????????????????????????? | | #?????#??????????????????????????????????????????? | | #????????#???#???????????????????????????????????? | | #????? ??#???????????????????????????????????????? | | ###??????????????????????????????????????????????? | | ?#?? ????#?????????????????????????????????????? | | ???????????????????????????????????????????????? | | ????????????????????????????? ???????????????????? | | ???#? ?????????????????????? "???????????????????? | | ??????????????????????????? """?????????????????? | | ##### ##??????????????????"" """??+??????????????? | | #???????????????????"" """" #??????????????? | | #??????????????????????"" """" #??????????????? | | ##?????????????????????"" """" #??????????????? | | #?????????#########???? ###????????????? | | ########################+# ##???????????? | | ##??## # # # # # #???????????? | | ###### !== ### % #* ### ?????????? | | / % =%p ! !pp %=%% ????????? | | ###### *== %!# #??????????? | | #????# """"" | ! @*p# # ###???????????? | | #????# "" F" ! = #?????????????? | | ######= "" "" #####?????????????? | | ## ;###?????????????????? | | ## u ##???????????????????? | | + ##;##; #????????????????????? | | ## ###### #????????????????????? | | ## # # #????????????????????? | | ####+########### # # #????????????????????? | | # """ #?# + # #????????????????????? | | # """ ""R" #?###"" + #????????????????????? | | # """ "" " #???#"Y ###????????????????????? | | ##### """ #???#"" #??????????????????????? | | ????# #???# #??????????????????????? | | ????##############???######??????????????????????? | | ?????????????????????????????????????????????????? | | ?????????????????????????????????????????????????? | | ?????????????????????????????????????????????????? | | ?????????????????????????????????????????????????? | | ?????????????????????????????????????????????????? | | ?????????????????????????????????????????????????? | | ?????????????????????????????????????????????????? | | ?????????????????????????????????????????????????? | | ?????????????????????????????????????????????????? | | ?????????????????????????????????????????????????? | +----------------------------------------------------+ Best States ------------- Heat Dissipation 48 Energy Generation 14 Energy Capacity 250 Matter Stores 300 Matter Capacity 300 Sight Range 16 Robot Scan Range 14 Terrain Scan Range 16 Terrain Scan Density 10 Armor Coverage 150 Evasion (%) 50 Core Analysis 6 Recoil Reduction 2 Offensive Hacking 10 Item Schematics ----------------- EM Pulse Gun | -10/Materials | Hacked Robot Schematics ------------------ None Fabricated ------------ Nothing Alien Tech Used ----------------- None Achievements -------------- 5k Club Backstab Crack Shot First Step to Greatness It's Just You Made in Tau Ceti IV Oops Remodeling Significant Disruption Tourist Challenges ------------ None Game ------ Seed SurgeArmoredInterpreter Manual? 0 Play Time 00:50:19 Cumulative 1.8 hours Start 2024.04.02 @ 03:01:13 End 2024.04.02 @ 03:49:47 Sessions 1 Manual Loads 0 Difficulty Rogue Special Mode None Game No. 5 Rogue 5 Adventurer 0 Explorer 0 Win Type - Total 0 Types 0/0/0/0/0/0/0/0/0 Lore% 1 Gallery% 5 Achievement% 8 Wizard Run 0 Options --------- Layout 1 ASCII 0 Keyboard 0 Movement Mouse Keybinds 0 Fullscreen 1 Font 24/Smallcaps Map View 50x35 Zoom Use 0% Tactical HUD 0 Map Filters NONE Filters NONE Steam 1 RUN: 16d8e0a4-345c-4210-ac2e-8af83260f25f